[Event "Early-Titled-Tuesday-Blitz-February-13-2024"]
[Site "Chess.com"]
[Date "2024.02.13"]
[Round "2"]
[White "KorolDimitriy75"]
[Black "GMG"]
[Result "1/2-1/2"]
[WhiteElo "2412"]
[BlackElo "2695"]
[TimeControl "180+1"]
[EndTime "8:20:11 PST"]
[Termination "Game drawn by repetition"]

1. d4 {[%clk 0:03:00.9]} 1... f5 {[%clk 0:02:59.4]} 2. c4 {[%clk 0:03:00.6]}
2... Nf6 {[%clk 0:02:59]} 3. Nf3 {[%clk 0:03:01.5]} 3... e6 {[%clk 0:02:59.2]}
4. g3 {[%clk 0:03:01.6]} 4... d5 {[%clk 0:02:59.3]} 5. Bg2 {[%clk 0:03:01.2]}
5... Bd6 {[%clk 0:02:59.8]} 6. O-O {[%clk 0:03:01.2]} 6... O-O {[%clk
0:03:00.4]} 7. Bf4 {[%clk 0:02:59.3]} 7... Bxf4 {[%clk 0:02:56.8]} 8. gxf4
{[%clk 0:03:00.2]} 8... c6 {[%clk 0:02:57]} 9. Ne5 {[%clk 0:02:56.8]} 9... Nbd7
{[%clk 0:02:55.7]} 10. Nd2 {[%clk 0:02:53.6]} 10... Nxe5 {[%clk 0:02:54.7]} 11.
fxe5 {[%clk 0:02:53.6]} 11... Ne4 {[%clk 0:02:55.3]} 12. Rc1 {[%clk 0:02:00.8]}
12... Nxd2 {[%clk 0:02:47.3]} 13. Qxd2 {[%clk 0:02:01.7]} 13... f4 {[%clk
0:02:47.9]} 14. Bf3 {[%clk 0:01:46.4]} 14... a5 {[%clk 0:02:38.9]} 15. Kh1
{[%clk 0:01:45.7]} 15... Qh4 {[%clk 0:02:38.4]} 16. Rg1 {[%clk 0:01:02.6]} 16...
Qxf2 {[%clk 0:02:35.1]} 17. Rg2 {[%clk 0:01:00.8]} 17... Qh4 {[%clk 0:02:27.9]}
18. Rcg1 {[%clk 0:00:56]} 18... g6 {[%clk 0:02:13.6]} 19. Rg4 {[%clk 0:00:39.3]}
19... Qh6 {[%clk 0:02:12.5]} 20. Qe1 {[%clk 0:00:36.1]} 20... Bd7 {[%clk
0:02:06]} 21. Rh4 {[%clk 0:00:35.6]} 21... Qg7 {[%clk 0:02:06.4]} 22. Qd2 {[%clk
0:00:27.8]} 22... Qf7 {[%clk 0:01:52.9]} 23. Rgg4 {[%clk 0:00:26]} 23... Qe7
{[%clk 0:01:50.2]} 24. Rxf4 {[%clk 0:00:24.9]} 24... Rxf4 {[%clk 0:01:45.1]} 25.
Rxf4 {[%clk 0:00:25.8]} 25... Qb4 {[%clk 0:01:42.8]} 26. Qxb4 {[%clk 0:00:14.5]}
26... axb4 {[%clk 0:01:43.7]} 27. cxd5 {[%clk 0:00:14.2]} 27... exd5 {[%clk
0:01:15.4]} 28. a3 {[%clk 0:00:13.7]} 28... bxa3 {[%clk 0:01:15]} 29. bxa3
{[%clk 0:00:14.6]} 29... Rxa3 {[%clk 0:00:53.3]} 30. Rf6 {[%clk 0:00:14.6]}
30... Bh3 {[%clk 0:00:49.2]} 31. Kg1 {[%clk 0:00:14.2]} 31... Ra8 {[%clk
0:00:45]} 32. Rd6 {[%clk 0:00:13]} 32... Kf7 {[%clk 0:00:38.8]} 33. Kf2 {[%clk
0:00:12.7]} 33... Ke7 {[%clk 0:00:38]} 34. Kg3 {[%clk 0:00:10.3]} 34... Be6
{[%clk 0:00:37.9]} 35. Bg4 {[%clk 0:00:07.2]} 35... Bxg4 {[%clk 0:00:35.4]} 36.
Kxg4 {[%clk 0:00:08.1]} 36... Rf8 {[%clk 0:00:33.8]} 37. Kg3 {[%clk 0:00:02.8]}
37... Rf1 {[%clk 0:00:30.4]} 38. h4 {[%clk 0:00:01.5]} 38... Re1 {[%clk
0:00:29.5]} 39. Kf3 {[%clk 0:00:01.3]} 39... Rf1+ {[%clk 0:00:26.2]} 40. Kg3
{[%clk 0:00:01.5]} 40... Rf5 {[%clk 0:00:23.7]} 41. e3 {[%clk 0:00:01.7]} 41...
Rf1 {[%clk 0:00:20.9]} 42. Kg4 {[%clk 0:00:01.9]} 42... Rf5 {[%clk 0:00:19.2]}
43. Kg3 {[%clk 0:00:02.2]} 43... Rf8 {[%clk 0:00:15.5]} 44. Kg4 {[%clk
0:00:02.4]} 44... Rf5 {[%clk 0:00:12.7]} 45. Kg3 {[%clk 0:00:02.6]} 1/2-1/2

[Event "Early-Titled-Tuesday-Blitz-February-13-2024"]
[Site "Chess.com"]
[Date "2024.02.13"]
[Round "2"]
[White "Levanzovsky"]
[Black "invisible_s0ul"]
[Result "1-0"]
[WhiteElo "2496"]
[BlackElo "2212"]
[TimeControl "180+1"]
[EndTime "8:20:12 PST"]
[Termination "Levanzovsky won on time"]

1. e4 {[%clk 0:03:00.9]} 1... c5 {[%clk 0:02:56.5]} 2. c3 {[%clk 0:03:00.4]}
2... Nf6 {[%clk 0:02:48.3]} 3. e5 {[%clk 0:03:00.4]} 3... Nd5 {[%clk 0:02:48.9]}
4. d4 {[%clk 0:03:00.9]} 4... cxd4 {[%clk 0:02:49.7]} 5. Nf3 {[%clk 0:03:01]}
5... Nc6 {[%clk 0:02:48.2]} 6. Bc4 {[%clk 0:03:00.8]} 6... Nb6 {[%clk
0:02:28.9]} 7. Bb3 {[%clk 0:03:00.6]} 7... d5 {[%clk 0:02:21.9]} 8. exd6 {[%clk
0:03:00]} 8... Qxd6 {[%clk 0:02:21.1]} 9. O-O {[%clk 0:02:57.9]} 9... e6 {[%clk
0:02:11]} 10. cxd4 {[%clk 0:02:57.2]} 10... Be7 {[%clk 0:02:11.6]} 11. Nc3
{[%clk 0:02:48.1]} 11... O-O {[%clk 0:02:09.8]} 12. Ne4 {[%clk 0:02:43.7]} 12...
Qd7 {[%clk 0:02:05.8]} 13. Nc5 {[%clk 0:02:36.2]} 13... Qc7 {[%clk 0:02:00.6]}
14. Be3 {[%clk 0:02:34.5]} 14... Nd5 {[%clk 0:01:56.8]} 15. Rc1 {[%clk
0:02:34.6]} 15... Bxc5 {[%clk 0:01:47.2]} 16. Rxc5 {[%clk 0:02:33]} 16... Qd6
{[%clk 0:01:34.6]} 17. Bxd5 {[%clk 0:01:54.4]} 17... exd5 {[%clk 0:01:35.5]} 18.
Qb3 {[%clk 0:01:55.1]} 18... Ne7 {[%clk 0:01:19]} 19. Rfc1 {[%clk 0:01:54]}
19... Be6 {[%clk 0:01:17.5]} 20. Qxb7 {[%clk 0:01:42.5]} 20... Rfb8 {[%clk
0:01:13.1]} 21. Qc7 {[%clk 0:01:41.3]} 21... Nf5 {[%clk 0:00:59.3]} 22. b3
{[%clk 0:01:33.6]} 22... Qa6 {[%clk 0:00:43.8]} 23. Ra5 {[%clk 0:01:24.8]} 23...
Qe2 {[%clk 0:00:28.9]} 24. Bf4 {[%clk 0:00:51.2]} 24... Rc8 {[%clk 0:00:25]} 25.
Rxa7 {[%clk 0:00:46.8]} 25... h6 {[%clk 0:00:10.8]} 26. Rxa8 {[%clk 0:00:42.7]}
26... Rxa8 {[%clk 0:00:10.9]} 27. Qc2 {[%clk 0:00:28.7]} 27... Rxa2 {[%clk
0:00:07.7]} 28. Qxe2 {[%clk 0:00:28.5]} 28... Rxe2 {[%clk 0:00:08.6]} 29. Rb1
{[%clk 0:00:28.9]} 29... Bd7 {[%clk 0:00:07.2]} 30. h3 {[%clk 0:00:21.8]} 30...
Re4 {[%clk 0:00:04.2]} 31. Be3 {[%clk 0:00:13]} 31... Nxe3 {[%clk 0:00:03.8]}
32. fxe3 {[%clk 0:00:13.9]} 32... Rxe3 {[%clk 0:00:04.3]} 33. Kf2 {[%clk
0:00:14]} 33... Rc3 {[%clk 0:00:04.5]} 34. Rb2 {[%clk 0:00:11.9]} 34... Bb5
{[%clk 0:00:02.6]} 35. b4 {[%clk 0:00:12.5]} 35... f6 {[%clk 0:00:03.2]} 36. Nd2
{[%clk 0:00:07.2]} 36... Rd3 {[%clk 0:00:03.6]} 37. Nb3 {[%clk 0:00:06.7]} 37...
Bc4 {[%clk 0:00:03.1]} 38. Nc5 {[%clk 0:00:04.7]} 38... Rxd4 {[%clk 0:00:03.4]}
39. b5 {[%clk 0:00:05.4]} 39... Rd1 {[%clk 0:00:02.9]} 40. b6 {[%clk 0:00:04.9]}
40... Rf1+ {[%clk 0:00:02.7]} 41. Kg3 {[%clk 0:00:05.3]} 41... Rf5 {[%clk
0:00:02.3]} 42. b7 {[%clk 0:00:04.5]} 42... Rg5+ {[%clk 0:00:02.4]} 43. Kh2
{[%clk 0:00:05.2]} 43... Kh7 {[%clk 0:00:02.2]} 44. b8=Q {[%clk 0:00:05.6]} 1-0

[Event "Early-Titled-Tuesday-Blitz-February-13-2024"]
[Site "Chess.com"]
[Date "2024.02.13"]
[Round "2"]
[White "newyorkmouse"]
[Black "klimkoj"]
[Result "1-0"]
[WhiteElo "2653"]
[BlackElo "2930"]
[TimeControl "180+1"]
[EndTime "8:20:15 PST"]
[Termination "newyorkmouse won on time"]

1. Nf3 {[%clk 0:03:00.9]} 1... Nf6 {[%clk 0:02:59.2]} 2. g3 {[%clk 0:02:59.3]}
2... b5 {[%clk 0:02:58.5]} 3. Bg2 {[%clk 0:02:59]} 3... Bb7 {[%clk 0:02:56]} 4.
O-O {[%clk 0:02:58.6]} 4... e6 {[%clk 0:02:55.9]} 5. d4 {[%clk 0:02:56.2]} 5...
c5 {[%clk 0:02:55.2]} 6. c3 {[%clk 0:02:51.4]} 6... cxd4 {[%clk 0:02:46.3]} 7.
cxd4 {[%clk 0:02:50.8]} 7... Be7 {[%clk 0:02:46.5]} 8. a4 {[%clk 0:02:43.3]}
8... b4 {[%clk 0:02:42.4]} 9. Nbd2 {[%clk 0:02:43.1]} 9... O-O {[%clk
0:02:39.9]} 10. Re1 {[%clk 0:02:41.4]} 10... d5 {[%clk 0:02:31.1]} 11. a5 {[%clk
0:02:38.3]} 11... Ne4 {[%clk 0:02:13.9]} 12. Nb3 {[%clk 0:02:31.5]} 12... Ba6
{[%clk 0:02:07]} 13. Bf4 {[%clk 0:02:26.2]} 13... Nc6 {[%clk 0:02:02.4]} 14. h4
{[%clk 0:02:09]} 14... Rc8 {[%clk 0:01:53.2]} 15. h5 {[%clk 0:02:07.2]} 15... h6
{[%clk 0:01:47.7]} 16. Ne5 {[%clk 0:01:55.5]} 16... Nxe5 {[%clk 0:01:46.5]} 17.
Bxe5 {[%clk 0:01:54.8]} 17... Nf6 {[%clk 0:01:34.5]} 18. Bf3 {[%clk 0:01:53.3]}
18... Nd7 {[%clk 0:01:34.2]} 19. Bf4 {[%clk 0:01:53.3]} 19... Bg5 {[%clk
0:01:33]} 20. Qd2 {[%clk 0:01:51.5]} 20... Bxf4 {[%clk 0:01:30.3]} 21. Qxf4
{[%clk 0:01:52.4]} 21... Rc2 {[%clk 0:01:30.6]} 22. Rab1 {[%clk 0:01:35.8]}
22... Qb8 {[%clk 0:01:10.9]} 23. Qe3 {[%clk 0:01:11.6]} 23... Qd6 {[%clk
0:01:03.7]} 24. Kg2 {[%clk 0:01:08.8]} 24... Rfc8 {[%clk 0:00:56.6]} 25. Na1
{[%clk 0:01:08]} 25... R2c7 {[%clk 0:00:54.1]} 26. Nb3 {[%clk 0:01:08.5]} 26...
e5 {[%clk 0:00:47.3]} 27. dxe5 {[%clk 0:01:01.3]} 27... Nxe5 {[%clk 0:00:48.2]}
28. Nd4 {[%clk 0:01:00.9]} 28... Nc4 {[%clk 0:00:46.7]} 29. Qf4 {[%clk
0:00:53.6]} 29... Qc5 {[%clk 0:00:20.7]} 30. Nf5 {[%clk 0:00:38.5]} 30... Kh8
{[%clk 0:00:20.5]} 31. Red1 {[%clk 0:00:31.3]} 31... Bb7 {[%clk 0:00:20.4]} 32.
a6 {[%clk 0:00:28.1]} 32... Ba8 {[%clk 0:00:19.2]} 33. b3 {[%clk 0:00:28.4]}
33... Nb6 {[%clk 0:00:16.6]} 34. Nd6 {[%clk 0:00:28.3]} 34... Rf8 {[%clk
0:00:15.5]} 35. Rbc1 {[%clk 0:00:27.1]} 35... Qxc1 {[%clk 0:00:04.9]} 36. Rxc1
{[%clk 0:00:27.1]} 36... Rd7 {[%clk 0:00:05.8]} 37. Bg4 {[%clk 0:00:25.6]} 37...
Rdd8 {[%clk 0:00:05.7]} 38. Nxf7+ {[%clk 0:00:25.2]} 38... Kg8 {[%clk
0:00:06.1]} 39. Be6 {[%clk 0:00:24.4]} 39... Rde8 {[%clk 0:00:04.7]} 40. Qd6
{[%clk 0:00:20.2]} 40... d4+ {[%clk 0:00:03.3]} 41. Kg1 {[%clk 0:00:19.6]} 41...
Rxe6 {[%clk 0:00:02]} 42. Qxe6 {[%clk 0:00:17.2]} 42... Bd5 {[%clk 0:00:02.6]}
43. Nxh6+ {[%clk 0:00:16.8]} 43... Kh7 {[%clk 0:00:01.1]} 44. Qg6+ {[%clk
0:00:16.4]} 1-0

[Event "Early-Titled-Tuesday-Blitz-February-13-2024"]
[Site "Chess.com"]
[Date "2024.02.13"]
[Round "2"]
[White "Kaua18"]
[Black "Chernov_Alexander_A"]
[Result "1-0"]
[WhiteElo "2546"]
[BlackElo "2316"]
[TimeControl "180+1"]
[EndTime "8:20:18 PST"]
[Termination "Kaua18 won on time"]

1. e4 {[%clk 0:02:55.1]} 1... d6 {[%clk 0:02:59.6]} 2. d4 {[%clk 0:02:53.8]}
2... Nf6 {[%clk 0:02:59.5]} 3. Nc3 {[%clk 0:02:53.7]} 3... Nbd7 {[%clk
0:02:58.9]} 4. Nf3 {[%clk 0:02:52.4]} 4... e5 {[%clk 0:02:58.9]} 5. Bc4 {[%clk
0:02:51]} 5... Be7 {[%clk 0:02:58.2]} 6. g4 {[%clk 0:02:50.4]} 6... h6 {[%clk
0:02:55.1]} 7. Rg1 {[%clk 0:02:48.6]} 7... c6 {[%clk 0:02:53.1]} 8. dxe5 {[%clk
0:02:43.7]} 8... Nxe5 {[%clk 0:02:47.3]} 9. Nxe5 {[%clk 0:02:43.3]} 9... dxe5
{[%clk 0:02:47.3]} 10. Qf3 {[%clk 0:02:40.6]} 10... b5 {[%clk 0:02:43.5]} 11.
Bb3 {[%clk 0:02:40.4]} 11... Qc7 {[%clk 0:02:12.5]} 12. h4 {[%clk 0:02:37]}
12... Bc5 {[%clk 0:01:52.7]} 13. g5 {[%clk 0:02:30.3]} 13... hxg5 {[%clk
0:01:50.8]} 14. Bxg5 {[%clk 0:02:28.3]} 14... Nh5 {[%clk 0:01:35.9]} 15. O-O-O
{[%clk 0:02:26.4]} 15... f6 {[%clk 0:01:35.6]} 16. Be3 {[%clk 0:02:17.2]} 16...
Bxe3+ {[%clk 0:01:30.8]} 17. Qxe3 {[%clk 0:02:16.9]} 17... Bd7 {[%clk
0:01:28.7]} 18. Qc5 {[%clk 0:02:13.2]} 18... O-O-O {[%clk 0:01:27.4]} 19. a4
{[%clk 0:02:10]} 19... a6 {[%clk 0:01:21.8]} 20. Na2 {[%clk 0:01:59.6]} 20...
Kb7 {[%clk 0:01:20.3]} 21. Kb1 {[%clk 0:01:52.2]} 21... Qb6 {[%clk 0:01:16.5]}
22. Qe7 {[%clk 0:01:46.7]} 22... Qc7 {[%clk 0:01:03.6]} 23. Rd3 {[%clk
0:01:45.4]} 23... Nf4 {[%clk 0:00:55.2]} 24. Rd2 {[%clk 0:01:14.2]} 24... Bc8
{[%clk 0:00:34.5]} 25. Rxg7 {[%clk 0:01:09.9]} 25... Qxe7 {[%clk 0:00:28.7]} 26.
Rxe7+ {[%clk 0:01:10.8]} 26... Kb6 {[%clk 0:00:28.9]} 27. Rxd8 {[%clk
0:01:07.3]} 27... Rxd8 {[%clk 0:00:27.2]} 28. Nb4 {[%clk 0:00:51.7]} 28... a5
{[%clk 0:00:21.4]} 29. Nd3 {[%clk 0:00:47.5]} 29... Nxd3 {[%clk 0:00:20.9]} 30.
cxd3 {[%clk 0:00:48.4]} 30... Rxd3 {[%clk 0:00:20.9]} 31. Ka2 {[%clk 0:00:46.1]}
31... Rh3 {[%clk 0:00:19.2]} 32. Rh7 {[%clk 0:00:45.5]} 32... Rh2 {[%clk
0:00:17.9]} 33. h5 {[%clk 0:00:40.2]} 33... bxa4 {[%clk 0:00:17.4]} 34. Bf7
{[%clk 0:00:31.3]} 34... Bg4 {[%clk 0:00:11.9]} 35. h6 {[%clk 0:00:29.3]} 35...
Bf3 {[%clk 0:00:11.3]} 36. Bg6 {[%clk 0:00:20.2]} 36... Rxf2 {[%clk 0:00:09.6]}
37. Rh8 {[%clk 0:00:19.2]} 37... Bd1 {[%clk 0:00:08.9]} 38. Rb8+ {[%clk
0:00:18.1]} 38... Ka7 {[%clk 0:00:07.4]} 39. h7 {[%clk 0:00:17.7]} 39... Bb3+
{[%clk 0:00:06.4]} 40. Ka3 {[%clk 0:00:17]} 40... Rf1 {[%clk 0:00:05.7]} 41.
Ra8+ {[%clk 0:00:13.6]} 41... Kb6 {[%clk 0:00:04.4]} 42. Rb8+ {[%clk 0:00:12.6]}
42... Kc5 {[%clk 0:00:04.2]} 43. Rxb3 {[%clk 0:00:07.2]} 43... Rh1 {[%clk
0:00:01.4]} 44. Kxa4 {[%clk 0:00:03.1]} 1-0

[Event "Early-Titled-Tuesday-Blitz-February-13-2024"]
[Site "Chess.com"]
[Date "2024.02.13"]
[Round "2"]
[White "Sam_ChessMood"]
[Black "Trendle"]
[Result "1-0"]
[WhiteElo "2925"]
[BlackElo "2627"]
[TimeControl "180+1"]
[EndTime "8:20:22 PST"]
[Termination "Sam_ChessMood won on time"]

1. d4 {[%clk 0:03:00.1]} 1... e6 {[%clk 0:03:00]} 2. c4 {[%clk 0:02:59.6]} 2...
f5 {[%clk 0:02:58.9]} 3. g3 {[%clk 0:02:55.3]} 3... Nf6 {[%clk 0:02:59.2]} 4.
Bg2 {[%clk 0:02:55.5]} 4... c6 {[%clk 0:02:59.4]} 5. Nd2 {[%clk 0:02:52.5]} 5...
Be7 {[%clk 0:02:47.2]} 6. e4 {[%clk 0:02:48.5]} 6... fxe4 {[%clk 0:02:46.7]} 7.
Nxe4 {[%clk 0:02:48.6]} 7... d5 {[%clk 0:02:42]} 8. Nxf6+ {[%clk 0:02:44.1]}
8... Bxf6 {[%clk 0:02:42.6]} 9. Nf3 {[%clk 0:02:44.4]} 9... dxc4 {[%clk
0:02:25.7]} 10. O-O {[%clk 0:02:44.3]} 10... Nd7 {[%clk 0:02:24.4]} 11. Qc2
{[%clk 0:02:36.6]} 11... Nb6 {[%clk 0:02:12.2]} 12. a4 {[%clk 0:02:28.1]} 12...
a5 {[%clk 0:02:10.8]} 13. h4 {[%clk 0:02:26.9]} 13... Nd5 {[%clk 0:02:02.2]} 14.
Qxc4 {[%clk 0:02:20.6]} 14... O-O {[%clk 0:02:00.4]} 15. Re1 {[%clk 0:02:19]}
15... Qd6 {[%clk 0:01:57.3]} 16. Bd2 {[%clk 0:02:11.7]} 16... b6 {[%clk
0:01:53.7]} 17. Rac1 {[%clk 0:02:07.8]} 17... Bb7 {[%clk 0:01:42.2]} 18. Ng5
{[%clk 0:01:54.1]} 18... Bxg5 {[%clk 0:01:38.4]} 19. hxg5 {[%clk 0:01:54.8]}
19... Rac8 {[%clk 0:01:34.1]} 20. Qe2 {[%clk 0:01:52.2]} 20... Rfe8 {[%clk
0:01:28.2]} 21. Be4 {[%clk 0:01:51.1]} 21... g6 {[%clk 0:01:21.5]} 22. Qg4
{[%clk 0:01:38]} 22... Ne7 {[%clk 0:01:17.4]} 23. Bf4 {[%clk 0:01:30.4]} 23...
Qd7 {[%clk 0:01:15.6]} 24. Be5 {[%clk 0:01:30.6]} 24... Nf5 {[%clk 0:01:15.6]}
25. Rcd1 {[%clk 0:01:22]} 25... Qf7 {[%clk 0:01:14.5]} 26. Qf4 {[%clk
0:01:13.1]} 26... Rf8 {[%clk 0:01:13.7]} 27. Bf6 {[%clk 0:01:11.1]} 27... Ne7
{[%clk 0:00:51.7]} 28. Qe5 {[%clk 0:01:06]} 28... Nf5 {[%clk 0:00:47.8]} 29. g4
{[%clk 0:01:02]} 29... Ng7 {[%clk 0:00:33.8]} 30. Rd3 {[%clk 0:00:58.4]} 30...
Ne8 {[%clk 0:00:29.3]} 31. Rf3 {[%clk 0:00:55.6]} 31... c5 {[%clk 0:00:29.7]}
32. Bxb7 {[%clk 0:00:51.5]} 32... Qxb7 {[%clk 0:00:27]} 33. Qxe6+ {[%clk
0:00:51.8]} 33... Rf7 {[%clk 0:00:25.6]} 34. Rf4 {[%clk 0:00:32.9]} 34... Nc7
{[%clk 0:00:23.1]} 35. Qxf7+ {[%clk 0:00:24.3]} 35... Kxf7 {[%clk 0:00:24]} 36.
Re7+ {[%clk 0:00:24.6]} 36... Kf8 {[%clk 0:00:24.2]} 37. Rxh7 {[%clk 0:00:19.9]}
37... Ke8 {[%clk 0:00:12.7]} 38. Re7+ {[%clk 0:00:09.4]} 38... Kf8 {[%clk
0:00:12.8]} 39. Rh7 {[%clk 0:00:09]} 39... Ke8 {[%clk 0:00:13.2]} 40. f3 {[%clk
0:00:02.5]} 40... Qc6 {[%clk 0:00:09.7]} 41. Re4+ {[%clk 0:00:02.8]} 41... Ne6
{[%clk 0:00:06.4]} 42. Re7+ {[%clk 0:00:02.4]} 42... Kf8 {[%clk 0:00:07.1]} 43.
R7xe6 {[%clk 0:00:02.6]} 43... Qd5 {[%clk 0:00:06.7]} 44. Re7 {[%clk 0:00:02.8]}
44... cxd4 {[%clk 0:00:06.4]} 45. Rh7 {[%clk 0:00:03]} 1-0

[Event "Early-Titled-Tuesday-Blitz-February-13-2024"]
[Site "Chess.com"]
[Date "2024.02.13"]
[Round "2"]
[White "K_A_S_T_O_R"]
[Black "viktorskliarov"]
[Result "1-0"]
[WhiteElo "2876"]
[BlackElo "2602"]
[TimeControl "180+1"]
[EndTime "8:20:22 PST"]
[Termination "K_A_S_T_O_R won by resignation"]

1. e4 {[%clk 0:03:00.9]} 1... c5 {[%clk 0:02:57.5]} 2. Nf3 {[%clk 0:02:59.9]}
2... Nc6 {[%clk 0:02:57.5]} 3. d4 {[%clk 0:03:00.1]} 3... cxd4 {[%clk
0:02:57.5]} 4. Nxd4 {[%clk 0:03:00.7]} 4... Nf6 {[%clk 0:02:58.2]} 5. Nc3 {[%clk
0:03:00.6]} 5... e5 {[%clk 0:02:58.5]} 6. Ndb5 {[%clk 0:03:00.8]} 6... d6 {[%clk
0:02:58.4]} 7. Bg5 {[%clk 0:03:00.8]} 7... a6 {[%clk 0:02:58.8]} 8. Na3 {[%clk
0:03:01.3]} 8... b5 {[%clk 0:02:59.5]} 9. Nd5 {[%clk 0:03:01.8]} 9... Be7 {[%clk
0:02:59.7]} 10. Bxf6 {[%clk 0:03:02.4]} 10... Bxf6 {[%clk 0:03:00.6]} 11. c3
{[%clk 0:03:03]} 11... O-O {[%clk 0:03:00.4]} 12. Nc2 {[%clk 0:03:03.5]} 12...
Rb8 {[%clk 0:03:00.8]} 13. Be2 {[%clk 0:03:02.9]} 13... Bg5 {[%clk 0:03:00.3]}
14. O-O {[%clk 0:03:03]} 14... Ne7 {[%clk 0:02:58.8]} 15. Ncb4 {[%clk
0:03:01.3]} 15... Bb7 {[%clk 0:02:57.1]} 16. Qd3 {[%clk 0:02:59.7]} 16... a5
{[%clk 0:02:34.4]} 17. Nxe7+ {[%clk 0:02:56.8]} 17... Bxe7 {[%clk 0:02:35]} 18.
Nd5 {[%clk 0:02:55.1]} 18... Bxd5 {[%clk 0:02:35.1]} 19. Qxd5 {[%clk 0:02:55.1]}
19... b4 {[%clk 0:02:35.4]} 20. Bb5 {[%clk 0:02:43.1]} 20... bxc3 {[%clk
0:02:00.4]} 21. bxc3 {[%clk 0:02:42.9]} 21... Qb6 {[%clk 0:02:00.5]} 22. c4
{[%clk 0:02:42.2]} 22... Qd4 {[%clk 0:00:55.4]} 23. Rad1 {[%clk 0:02:29.6]}
23... Qxd5 {[%clk 0:00:54.5]} 24. Rxd5 {[%clk 0:02:30.1]} 24... Rb6 {[%clk
0:00:48.3]} 25. a4 {[%clk 0:02:25.6]} 25... g6 {[%clk 0:00:40.6]} 26. g3 {[%clk
0:02:12.8]} 26... Ra8 {[%clk 0:00:27.7]} 27. f4 {[%clk 0:02:07.4]} 27... exf4
{[%clk 0:00:23.6]} 28. gxf4 {[%clk 0:02:07.3]} 28... Bd8 {[%clk 0:00:20.9]} 29.
Kg2 {[%clk 0:02:06.4]} 29... Bc7 {[%clk 0:00:20]} 30. Kf3 {[%clk 0:02:02.5]}
30... Rbb8 {[%clk 0:00:19.6]} 31. Rfd1 {[%clk 0:01:55.3]} 31... Rd8 {[%clk
0:00:19.3]} 32. c5 {[%clk 0:01:45.8]} 32... dxc5 {[%clk 0:00:18.9]} 33. Rd7
{[%clk 0:01:46.3]} 33... Rxd7 {[%clk 0:00:16.3]} 34. Rxd7 {[%clk 0:01:46.8]}
34... Ra7 {[%clk 0:00:09.4]} 35. Bc4 {[%clk 0:01:44.3]} 35... Bb6 {[%clk
0:00:09.3]} 36. Rd6 {[%clk 0:01:43.1]} 36... Bc7 {[%clk 0:00:07.9]} 37. Rc6
{[%clk 0:01:42.9]} 37... Kg7 {[%clk 0:00:05.8]} 38. Rxc5 {[%clk 0:01:42.4]}
38... Bd6 {[%clk 0:00:05.6]} 39. Rc6 {[%clk 0:01:41.3]} 39... Bb4 {[%clk
0:00:06.2]} 40. e5 {[%clk 0:01:40.7]} 40... Re7 {[%clk 0:00:06.8]} 41. Ke4
{[%clk 0:01:40.7]} 41... h5 {[%clk 0:00:06.3]} 42. Bd5 {[%clk 0:01:35.9]} 42...
Rd7 {[%clk 0:00:06]} 43. Rc4 {[%clk 0:01:31.6]} 43... Re7 {[%clk 0:00:06.3]} 44.
Bc6 {[%clk 0:01:29.2]} 44... Rc7 {[%clk 0:00:06.6]} 45. Kd5 {[%clk 0:01:29.3]}
45... Re7 {[%clk 0:00:06.9]} 46. Rc2 {[%clk 0:01:25.3]} 46... Rc7 {[%clk
0:00:06.2]} 47. Rf2 {[%clk 0:01:25.2]} 47... Re7 {[%clk 0:00:04.8]} 48. Rg2
{[%clk 0:01:25.3]} 48... Rc7 {[%clk 0:00:04.3]} 49. f5 {[%clk 0:01:25.6]} 49...
Rc8 {[%clk 0:00:03.8]} 50. f6+ {[%clk 0:01:25.6]} 50... Kh6 {[%clk 0:00:03.8]}
51. Bd7 {[%clk 0:01:21.2]} 51... Rc5+ {[%clk 0:00:03.3]} 52. Kd4 {[%clk
0:01:19.4]} 52... Rc1 {[%clk 0:00:03.5]} 53. e6 {[%clk 0:01:18]} 53... Bc3+
{[%clk 0:00:03.2]} 54. Kd3 {[%clk 0:01:13]} 54... Bxf6 {[%clk 0:00:03.5]} 55.
exf7 {[%clk 0:01:13]} 55... Kg7 {[%clk 0:00:03.8]} 56. Be8 {[%clk 0:01:11.2]}
56... g5 {[%clk 0:00:04]} 57. Rf2 {[%clk 0:01:09.5]} 57... Be7 {[%clk
0:00:04.3]} 58. Rf5 {[%clk 0:01:07.4]} 58... Rc5 {[%clk 0:00:04]} 59. Rf2 {[%clk
0:01:05.9]} 59... g4 {[%clk 0:00:03.6]} 60. Kd4 {[%clk 0:01:05.3]} 60... Rc7
{[%clk 0:00:03.3]} 61. Rf5 {[%clk 0:01:04.2]} 61... Bf8 {[%clk 0:00:03.3]} 62.
Rxa5 {[%clk 0:01:03.7]} 62... h4 {[%clk 0:00:02.3]} 63. Rg5+ {[%clk 0:01:03]}
63... Kf6 {[%clk 0:00:02.9]} 64. Rxg4 {[%clk 0:01:03.6]} 64... h3 {[%clk
0:00:03.2]} 65. Rg3 {[%clk 0:01:02.9]} 65... Bc5+ {[%clk 0:00:02.7]} 66. Kd5
{[%clk 0:01:02.9]} 66... Bf8 {[%clk 0:00:02.1]} 67. Rxh3 {[%clk 0:01:02.9]}
67... Rc5+ {[%clk 0:00:02.8]} 68. Kd4 {[%clk 0:01:03.3]} 68... Ra5 {[%clk
0:00:03.1]} 69. Rh8 {[%clk 0:01:02.4]} 1-0